[Event "World Prestigious University 2019"]
[Site "Tianjin"]
[Date "2019.11.28"]
[Round "8.3"]
[White "Zhou, Qiyu"]
[Black "Balashov, Yuri S"]
[Result "1-0"]
[WhiteElo "2216"]
[BlackElo "2465"]
[PlyCount "43"]
[EventDate "2019.11.26"]
[EventType "team-tourn"]
[EventCountry "CHN"]
[TimeControl "1500+10"]
[WhiteClock "0:14:22"]
[BlackClock "0:21:49"]

1. e4 {[%emt 0:00:00]} c5 {[%emt 0:00:00]} 2. Nf3 {[%emt 0:00:00]} e6 {[%emt 0:00:02]} 3. d4 {[%emt 0:00:00]} cxd4 {[%emt 0:00:21]} 4. Nxd4 {[%emt 0:00:00]} a6 {[%emt 0:00:11]} 5. Nc3 {[%emt 0:00:00]} Qc7 {[%emt 0:00:14]} 6. a3 {[%emt 0:00:15]} b5 {[%emt 0:00:44]} 7. Be3 {[%emt 0:00:29]} Nf6 {[%emt 0:00:48]} 8. f3 {[%emt 0:00:12]} Bb7 {[%emt 0:00:33]} 9. Qd2 {[%emt 0:00:03]} d6 {[%emt 0:00:37]} 10. g4 {[%emt 0:00:03]} Be7 {[%emt 0:01:29]} 11. O-O-O {[%emt 0:00:26]} Nbd7 {[%emt 0:00:34]} 12. g5 {[%emt 0:00:13]} Nh5 {[%emt 0:01:09]} 13. f4 {[%emt 0:02:22]} g6 {[%emt 0:00:44]} 14. Be2 {[%emt 0:00:52]} Ng7 {[%emt 0:00:12]} 15. h4 {[%emt 0:00:41]} O-O-O {[%emt 0:01:12]} 16. Ncxb5 {[%emt 0:00:55]} axb5 {[%emt 0:02:43]} 17. Nxb5 {[%emt 0:00:02]} Qb8 {[%emt 0:01:06]} 18. Na7+ {[%emt 0:00:04]} Kc7 {[%emt 0:00:27]} 19. Qa5+ {[%emt 0:00:06]} Nb6 {[%emt 0:00:44]} 20. Bxb6+ {[%emt 0:00:04]} Kd7 {[%emt 0:00:07]} 21. Bb5+ {[%emt 0:00:01]} Bc6 {[%emt 0:00:11]} 22. Bxc6# {[%emt 0:00:03]} 1-0

[Event "World Prestigious University 2019"]
[Site "Tianjin"]
[Date "2019.11.28"]
[Round "8.4"]
[White "Li, Ethan"]
[Black "Wang, Yue"]
[Result "0-1"]
[WhiteElo "2209"]
[BlackElo "2674"]
[PlyCount "90"]
[EventDate "2019.11.26"]
[EventType "team-tourn"]
[EventCountry "CHN"]
[TimeControl "1500+10"]
[WhiteClock "0:04:33"]
[BlackClock "0:00:23"]

1. d4 {[%emt 0:00:00]} Nf6 {[%emt 0:00:00]} 2. c4 {[%emt 0:00:00]} e6 {[%emt 0:00:07]} 3. Nf3 {[%emt 0:00:00]} Bb4+ {[%emt 0:00:06]} 4. Bd2 {[%emt 0:00:01]} Qe7 {[%emt 0:00:02]} 5. g3 {[%emt 0:00:02]} Nc6 {[%emt 0:00:02]} 6. Nc3 {[%emt 0:00:02]} O-O {[%emt 0:00:31]} 7. Bg2 {[%emt 0:00:04]} Bxc3 {[%emt 0:00:02]} 8. Bxc3 {[%emt 0:00:03]} Ne4 {[%emt 0:00:02]} 9. Rc1 {[%emt 0:00:02]} d6 {[%emt 0:00:05]} 10. d5 {[%emt 0:00:02]} Nb8 {[%emt 0:01:56]} 11. Bd4 {[%emt 0:01:28]} e5 {[%emt 0:00:31]} 12. Be3 {[%emt 0:00:02]} a5 {[%emt 0:00:11]} 13. Nd2 {[%emt 0:00:27]} Nxd2 {[%emt 0:00:59]} 14. Qxd2 {[%emt 0:00:03]} Nd7 {[%emt 0:00:02]} 15. b3 {[%emt 0:02:53]} Nc5 {[%emt 0:01:37]} 16. Qc2 {[%emt 0:00:30]} f5 {[%emt 0:01:15]} 17. a3 {[%emt 0:02:02]} f4 {[%emt 0:00:48]} 18. Bxc5 {[%emt 0:00:25]} dxc5 {[%emt 0:00:01]} 19. Be4 {[%emt 0:00:14]} h6 {[%emt 0:01:00]} 20. Rb1 {[%emt 0:03:32]} Ra6 {[%emt 0:01:43]} 21. f3 {[%emt 0:05:27]} Bd7 {[%emt 0:02:32]} 22. g4 {[%emt 0:01:08]} a4 {[%emt 0:00:25]} 23. b4 {[%emt 0:00:33]} cxb4 {[%emt 0:00:03]} 24. axb4 {[%emt 0:00:33]} a3 {[%emt 0:00:40]} 25. c5 {[%emt 0:02:36]} Qh4+ {[%emt 0:00:29]} 26. Kd2 {[%emt 0:00:08]} Bb5 {[%emt 0:02:52]} 27. Bd3 {[%emt 0:00:30]} Bxd3 {[%emt 0:00:19]} 28. Qxd3 {[%emt 0:00:02]} a2 {[%emt 0:00:09]} 29. Ra1 {[%emt 0:00:20]} Rfa8 {[%emt 0:00:01]} 30. Qc4 {[%emt 0:03:16]} Kh8 {[%emt 0:00:11]} 31. h3 {[%emt 0:01:33]} Ra3 {[%emt 0:00:34]} 32. Rhc1 {[%emt 0:00:19]} e4 {[%emt 0:01:57]} 33. Qxe4 {[%emt 0:01:22]} Qf6 {[%emt 0:00:02]} 34. Qc4 {[%emt 0:00:16]} Qe5 {[%emt 0:02:19]} 35. Qe4 {[%emt 0:00:27]} Qb2+ {[%emt 0:00:18]} 36. Ke1 {[%emt 0:00:01]} Re3 {[%emt 0:00:15]} 37. Qc2 {[%emt 0:00:05]} Qxb4+ {[%emt 0:00:06]} 38. Kf1 {[%emt 0:00:00]} Rea3 {[%emt 0:00:58]} 39. Rd1 {[%emt 0:00:01]} Rc3 {[%emt 0:00:55]} 40. Qd2 {[%emt 0:00:01]} Qc4 {[%emt 0:00:01]} 41. Kg2 {[%emt 0:00:21]} Rc2 {[%emt 0:00:13]} 42. Qd3 {[%emt 0:00:40]} Qxc5 {[%emt 0:01:19]} 43. Rd2 {[%emt 0:00:17]} Rxd2 {[%emt 0:00:08]} 44. Qxd2 {[%emt 0:00:02]} Qc4 {[%emt 0:00:03]} 45. Kf1 {[%emt 0:00:17]} b5 {[%emt 0:00:08]} 0-1

[Event "World Prestigious University 2019"]
[Site "Tianjin"]
[Date "2019.11.28"]
[Round "8.7"]
[White "Daniel, Karim Abbas"]
[Black "Green, Michael L"]
[Result "1-0"]
[WhiteElo "2251"]
[BlackElo "2073"]
[PlyCount "107"]
[EventDate "2019.11.26"]
[EventType "team-tourn"]
[EventCountry "CHN"]
[TimeControl "1500+10"]
[WhiteClock "0:00:27"]
[BlackClock "0:07:20"]

1. e4 {[%emt 0:00:00]} c5 {[%emt 0:00:00]} 2. Nf3 {[%emt 0:00:00]} Nc6 {[%emt 0:00:00]} 3. Bb5 {[%emt 0:00:00]} Nf6 {[%emt 0:00:00]} 4. Nc3 {[%emt 0:00:20]} Qc7 {[%emt 0:00:01]} 5. Bxc6 {[%emt 0:01:39]} dxc6 {[%emt 0:00:08]} 6. d3 {[%emt 0:00:07]} e5 {[%emt 0:00:02]} 7. h3 {[%emt 0:00:06]} h6 {[%emt 0:00:05]} 8. Be3 {[%emt 0:00:09]} Be6 {[%emt 0:00:07]} 9. Nd2 {[%emt 0:02:18]} Be7 {[%emt 0:00:45]} 10. a3 {[%emt 0:00:21]} Nd7 {[%emt 0:00:50]} 11. Qb1 {[%emt 0:01:28]} Bg5 {[%emt 0:01:05]} 12. b4 {[%emt 0:00:49]} Bxe3 {[%emt 0:00:23]} 13. fxe3 {[%emt 0:00:01]} O-O {[%emt 0:01:59]} 14. bxc5 {[%emt 0:00:43]} Qa5 {[%emt 0:01:08]} 15. Qb4 {[%emt 0:00:19]} Qxc5 {[%emt 0:00:26]} 16. Ke2 {[%emt 0:00:42]} Rfd8 {[%emt 0:02:13]} 17. Nf3 {[%emt 0:02:40]} Qxb4 {[%emt 0:03:30]} 18. axb4 {[%emt 0:00:01]} f6 {[%emt 0:01:31]} 19. Ra5 {[%emt 0:01:18]} b6 {[%emt 0:01:44]} 20. Ra3 {[%emt 0:01:13]} Nf8 {[%emt 0:05:35]} 21. Rha1 {[%emt 0:00:38]} Rd7 {[%emt 0:00:01]} 22. Ra6 {[%emt 0:00:22]} c5 {[%emt 0:02:02]} 23. bxc5 {[%emt 0:01:55]} bxc5 {[%emt 0:00:20]} 24. R1a5 {[%emt 0:00:06]} Rc7 {[%emt 0:01:03]} 25. Nb5 {[%emt 0:00:09]} Rb7 {[%emt 0:00:09]} 26. c4 {[%emt 0:00:59]} Bd7 {[%emt 0:01:39]} 27. Rxa7 {[%emt 0:00:17]} Rbxa7 {[%emt 0:00:26]} 28. Rxa7 {[%emt 0:00:01]} Rxa7 {[%emt 0:00:07]} 29. Nxa7 {[%emt 0:00:02]} Ne6 {[%emt 0:00:17]} 30. Nb5 {[%emt 0:00:13]} g5 {[%emt 0:01:22]} 31. Nd2 {[%emt 0:00:21]} Kf8 {[%emt 0:00:22]} 32. Nc3 {[%emt 0:00:06]} Kf7 {[%emt 0:00:36]} 33. Nb3 {[%emt 0:00:22]} Kg6 {[%emt 0:00:13]} 34. Nd5 {[%emt 0:00:16]} h5 {[%emt 0:00:13]} 35. Na5 {[%emt 0:01:28]} g4 {[%emt 0:00:06]} 36. hxg4 {[%emt 0:00:40]} hxg4 {[%emt 0:00:00]} 37. Nb6 {[%emt 0:00:46]} Be8 {[%emt 0:00:07]} 38. Nb7 {[%emt 0:00:03]} Kg5 {[%emt 0:00:07]} 39. Nd6 {[%emt 0:00:31]} Bh5 {[%emt 0:00:10]} 40. g3 {[%emt 0:00:01]} Kh6 {[%emt 0:00:32]} 41. Nd7 {[%emt 0:00:06]} Kg7 {[%emt 0:00:10]} 42. Nb7 {[%emt 0:00:13]} Be8 {[%emt 0:00:10]} 43. Ndxc5 {[%emt 0:00:12]} Ng5 {[%emt 0:00:14]} 44. Nd6 {[%emt 0:00:08]} Bc6 {[%emt 0:00:05]} 45. d4 {[%emt 0:00:15]} exd4 {[%emt 0:00:03]} 46. exd4 {[%emt 0:00:02]} Nf3 {[%emt 0:00:13]} 47. d5 {[%emt 0:00:28]} Ba8 {[%emt 0:00:00]} 48. Ne6+ {[%emt 0:00:12]} Kg6 {[%emt 0:00:19]} 49. Nc7 {[%emt 0:00:14]} Bxd5 {[%emt 0:00:11]} 50. exd5 {[%emt 0:00:19]} Nd4+ {[%emt 0:00:17]} 51. Ke3 {[%emt 0:00:12]} Nb3 {[%emt 0:00:02]} 52. Ne6 {[%emt 0:00:13]} f5 {[%emt 0:00:12]} 53. c5 {[%emt 0:00:28]} f4+ {[%emt 0:00:03]} 54. Kxf4 {[%emt 0:00:08]} 1-0

[Event "World Prestigious University 2019"]
[Site "Tianjin"]
[Date "2019.11.28"]
[Round "8.8"]
[White "Zhong, Wei"]
[Black "Mihov, Filip"]
[Result "1-0"]
[WhiteElo "1804"]
[BlackElo "2191"]
[PlyCount "87"]
[EventDate "2019.11.26"]
[EventType "team-tourn"]
[EventCountry "CHN"]
[TimeControl "1500+10"]
[WhiteClock "0:00:11"]
[BlackClock "0:00:32"]

1. e4 {[%emt 0:00:00]} e6 {[%emt 0:00:00]} 2. d4 {[%emt 0:00:03]} d5 {[%emt 0:00:00]} 3. exd5 {[%emt 0:00:40]} exd5 {[%emt 0:00:01]} 4. Bd3 {[%emt 0:00:02]} Nc6 {[%emt 0:00:02]} 5. c3 {[%emt 0:00:15]} Bd6 {[%emt 0:00:03]} 6. Nf3 {[%emt 0:00:34]} Nge7 {[%emt 0:00:08]} 7. Bg5 {[%emt 0:00:36]} f6 {[%emt 0:00:26]} 8. Bh4 {[%emt 0:00:05]} Bf5 {[%emt 0:00:12]} 9. O-O {[%emt 0:00:43]} Qd7 {[%emt 0:00:07]} 10. Bg3 {[%emt 0:02:38]} O-O-O {[%emt 0:01:12]} 11. Bxd6 {[%emt 0:01:06]} Qxd6 {[%emt 0:00:10]} 12. b4 {[%emt 0:01:51]} g5 {[%emt 0:00:46]} 13. Bxf5+ {[%emt 0:02:26]} Nxf5 {[%emt 0:00:03]} 14. a4 {[%emt 0:00:35]} h5 {[%emt 0:00:32]} 15. a5 {[%emt 0:00:28]} Rdg8 {[%emt 0:01:24]} 16. Qd3 {[%emt 0:01:31]} Nce7 {[%emt 0:00:24]} 17. Na3 {[%emt 0:01:26]} g4 {[%emt 0:01:03]} 18. Nd2 {[%emt 0:01:13]} Qd7 {[%emt 0:05:20]} 19. Nb3 {[%emt 0:01:07]} Nd6 {[%emt 0:00:48]} 20. Nc5 {[%emt 0:01:11]} Qf5 {[%emt 0:00:02]} 21. Qxf5+ {[%emt 0:01:47]} Nexf5 {[%emt 0:00:03]} 22. Rfe1 {[%emt 0:00:10]} Re8 {[%emt 0:01:47]} 23. a6 {[%emt 0:02:57]} b6 {[%emt 0:00:12]} 24. Nd3 {[%emt 0:00:00]} Ne4 {[%emt 0:00:27]} 25. Nb5 {[%emt 0:00:24]} Kb8 {[%emt 0:00:11]} 26. Rac1 {[%emt 0:00:51]} c6 {[%emt 0:00:07]} 27. Na3 {[%emt 0:00:06]} h4 {[%emt 0:01:29]} 28. f3 {[%emt 0:01:15]} gxf3 {[%emt 0:00:04]} 29. gxf3 {[%emt 0:00:01]} Reg8+ {[%emt 0:04:41]} 30. Kf1 {[%emt 0:00:54]} Ng5 {[%emt 0:00:28]} 31. Re2 {[%emt 0:02:07]} Rh7 {[%emt 0:03:05]} 32. Kf2 {[%emt 0:00:45]} Nh3+ {[%emt 0:01:04]} 33. Ke1 {[%emt 0:00:04]} Ng1 {[%emt 0:00:28]} 34. Rf2 {[%emt 0:00:11]} h3 {[%emt 0:00:58]} 35. Nf4 {[%emt 0:00:29]} Nh4 {[%emt 0:00:19]} 36. b5 {[%emt 0:00:09]} Nhxf3+ {[%emt 0:00:35]} 37. Kf1 {[%emt 0:00:06]} Rg4 {[%emt 0:01:46]} 38. Nd3 {[%emt 0:00:12]} cxb5 {[%emt 0:00:18]} 39. Nxb5 {[%emt 0:00:04]} Re7 {[%emt 0:00:13]} 40. c4 {[%emt 0:00:11]} dxc4 {[%emt 0:00:20]} 41. Rxc4 {[%emt 0:00:15]} Rge4 {[%emt 0:00:01]} 42. Rfc2 {[%emt 0:00:15]} Re8 {[%emt 0:00:18]} 43. Nd6 {[%emt 0:00:01]} Rxd4 {[%emt 0:00:22]} 44. Rc8+ {[%emt 0:00:04]} 1-0

[Event "World Prestigious University 2019"]
[Site "Tianjin"]
[Date "2019.11.28"]
[Round "8.10"]
[White "Grigory, Oparin"]
[Black "Kukhmazov, Arsen"]
[Result "1-0"]
[WhiteElo "2660"]
[BlackElo "2377"]
[PlyCount "55"]
[EventDate "2019.11.26"]
[EventType "team-tourn"]
[EventCountry "CHN"]
[TimeControl "1500+10"]
[WhiteClock "0:11:21"]
[BlackClock "0:05:59"]

1. e3 {[%emt 0:00:00]} d5 {[%emt 0:00:21]} 2. Nf3 {[%emt 0:00:00]} Nf6 {[%emt 0:00:40]} 3. c4 {[%emt 0:00:00]} c6 {[%emt 0:00:15]} 4. Qc2 {[%emt 0:00:01]} g6 {[%emt 0:00:42]} 5. d4 {[%emt 0:00:05]} Bg7 {[%emt 0:00:02]} 6. h3 {[%emt 0:01:08]} Bf5 {[%emt 0:02:49]} 7. Bd3 {[%emt 0:00:02]} Bxd3 {[%emt 0:00:05]} 8. Qxd3 {[%emt 0:00:04]} Ne4 {[%emt 0:01:02]} 9. Nc3 {[%emt 0:00:40]} Nxc3 {[%emt 0:00:29]} 10. bxc3 {[%emt 0:00:02]} Nd7 {[%emt 0:00:26]} 11. Rb1 {[%emt 0:00:21]} Qc7 {[%emt 0:00:01]} 12. cxd5 {[%emt 0:05:41]} cxd5 {[%emt 0:00:01]} 13. Qb5 {[%emt 0:00:01]} Qxc3+ {[%emt 0:04:09]} 14. Bd2 {[%emt 0:00:02]} Qc6 {[%emt 0:00:00]} 15. Qxb7 {[%emt 0:00:12]} Qxb7 {[%emt 0:00:01]} 16. Rxb7 {[%emt 0:00:03]} Rb8 {[%emt 0:00:01]} 17. Rxa7 {[%emt 0:03:06]} Rb1+ {[%emt 0:00:08]} 18. Ke2 {[%emt 0:00:01]} Rxh1 {[%emt 0:00:02]} 19. Ra8+ {[%emt 0:00:01]} Nb8 {[%emt 0:00:01]} 20. Rxb8+ {[%emt 0:00:02]} Kd7 {[%emt 0:00:01]} 21. Rb7+ {[%emt 0:00:03]} Ke6 {[%emt 0:00:00]} 22. Ng5+ {[%emt 0:03:32]} Kf6 {[%emt 0:00:01]} 23. e4 {[%emt 0:00:05]} Bf8 {[%emt 0:01:41]} 24. exd5 {[%emt 0:03:15]} h6 {[%emt 0:01:41]} 25. Bf4 {[%emt 0:02:28]} hxg5 {[%emt 0:02:31]} 26. Be5+ {[%emt 0:00:05]} Kf5 {[%emt 0:00:00]} 27. Bxh8 {[%emt 0:02:19]} Ra1 {[%emt 0:00:59]} 28. Kf3 {[%emt 0:00:22]} 1-0

[Event "World Prestigious University 2019"]
[Site "Tianjin"]
[Date "2019.11.28"]
[Round "8.11"]
[White "Tarasov, Alexandr"]
[Black "Dmitry, Gordievskiy"]
[Result "0-1"]
[WhiteElo "2348"]
[BlackElo "2590"]
[PlyCount "72"]
[EventDate "2019.11.26"]
[EventType "team-tourn"]
[EventCountry "CHN"]
[TimeControl "1500+10"]
[WhiteClock "0:00:42"]
[BlackClock "0:00:27"]

1. e4 {[%emt 0:00:08]} c5 {[%emt 0:00:08]} 2. Nf3 {[%emt 0:00:25]} Nc6 {[%emt 0:00:18]} 3. b3 {[%emt 0:00:48]} Nf6 {[%emt 0:01:37]} 4. e5 {[%emt 0:01:06]} Nd5 {[%emt 0:04:02]} 5. Bb2 {[%emt 0:05:18]} e6 {[%emt 0:00:11]} 6. c4 {[%emt 0:01:35]} Nde7 {[%emt 0:01:07]} 7. g3 {[%emt 0:04:46]} d5 {[%emt 0:01:16]} 8. exd6 {[%emt 0:01:16]} Nf5 {[%emt 0:00:02]} 9. Bg2 {[%emt 0:01:22]} Bxd6 {[%emt 0:00:09]} 10. O-O {[%emt 0:00:13]} O-O {[%emt 0:00:55]} 11. Na3 {[%emt 0:00:40]} e5 {[%emt 0:01:11]} 12. Nb5 {[%emt 0:00:45]} f6 {[%emt 0:00:28]} 13. d3 {[%emt 0:02:23]} Be7 {[%emt 0:01:32]} 14. a3 {[%emt 0:01:18]} Be6 {[%emt 0:00:00]} 15. Nc3 {[%emt 0:00:24]} Re8 {[%emt 0:02:17]} 16. Nd5 {[%emt 0:01:41]} Bf8 {[%emt 0:00:01]} 17. Nd2 {[%emt 0:00:27]} Nfe7 {[%emt 0:00:54]} 18. Qf3 {[%emt 0:00:32]} Bf7 {[%emt 0:01:40]} 19. Ne4 {[%emt 0:00:42]} Nxd5 {[%emt 0:00:40]} 20. cxd5 {[%emt 0:00:06]} Nd4 {[%emt 0:00:01]} 21. Bxd4 {[%emt 0:00:36]} cxd4 {[%emt 0:00:02]} 22. g4 {[%emt 0:00:11]} Bd6 {[%emt 0:05:58]} 23. h4 {[%emt 0:00:39]} Kh8 {[%emt 0:01:34]} 24. g5 {[%emt 0:00:22]} Rg8 {[%emt 0:02:08]} 25. Rfc1 {[%emt 0:01:02]} Qe7 {[%emt 0:00:29]} 26. gxf6 {[%emt 0:00:21]} gxf6 {[%emt 0:00:01]} 27. Qxf6+ {[%emt 0:00:12]} Qxf6 {[%emt 0:00:02]} 28. Nxf6 {[%emt 0:00:01]} Rg6 {[%emt 0:00:02]} 29. Ne4 {[%emt 0:00:09]} Rag8 {[%emt 0:00:49]} 30. Ng5 {[%emt 0:00:10]} Be8 {[%emt 0:00:03]} 31. Be4 {[%emt 0:00:02]} h6 {[%emt 0:00:20]} 32. Bxg6 {[%emt 0:00:08]} Bxg6 {[%emt 0:00:00]} 33. Ne6 {[%emt 0:00:23]} Bxd3+ {[%emt 0:00:13]} 34. Kh2 {[%emt 0:00:10]} e4+ {[%emt 0:00:04]} 35. Kh3 {[%emt 0:00:03]} e3 {[%emt 0:00:01]} 36. Nxd4 {[%emt 0:00:09]} exf2 {[%emt 0:00:03]} 0-1

[Event "World Prestigious University 2019"]
[Site "Tianjin"]
[Date "2019.11.28"]
[Round "8.12"]
[White "Wang, Nancy"]
[Black "Bogachkova, Alena"]
[Result "0-1"]
[WhiteElo "1823"]
[BlackElo "2080"]
[PlyCount "60"]
[EventDate "2019.11.26"]
[EventType "team-tourn"]
[EventCountry "CHN"]
[TimeControl "1500+10"]
[WhiteClock "0:04:55"]
[BlackClock "0:00:31"]

1. e4 {[%emt 0:00:00]} c5 {[%emt 0:00:00]} 2. Nc3 {[%emt 0:00:23]} g6 {[%emt 0:00:04]} 3. g3 {[%emt 0:00:02]} Bg7 {[%emt 0:00:02]} 4. Bg2 {[%emt 0:00:01]} Nc6 {[%emt 0:00:03]} 5. d3 {[%emt 0:00:02]} d6 {[%emt 0:00:14]} 6. Be3 {[%emt 0:00:05]} e6 {[%emt 0:01:07]} 7. Qd2 {[%emt 0:00:08]} Rb8 {[%emt 0:02:14]} 8. Nge2 {[%emt 0:00:48]} Nd4 {[%emt 0:00:13]} 9. O-O {[%emt 0:00:52]} Ne7 {[%emt 0:00:15]} 10. Nd1 {[%emt 0:05:17]} b5 {[%emt 0:00:34]} 11. c3 {[%emt 0:00:36]} Nxe2+ {[%emt 0:00:08]} 12. Qxe2 {[%emt 0:00:02]} b4 {[%emt 0:00:17]} 13. f4 {[%emt 0:00:43]} bxc3 {[%emt 0:00:30]} 14. bxc3 {[%emt 0:00:49]} Qa5 {[%emt 0:00:39]} 15. Qc2 {[%emt 0:02:31]} Bd7 {[%emt 0:00:21]} 16. d4 {[%emt 0:05:23]} cxd4 {[%emt 0:01:50]} 17. cxd4 {[%emt 0:00:11]} O-O {[%emt 0:00:11]} 18. Qc3 {[%emt 0:02:39]} Qa6 {[%emt 0:03:07]} 19. Rf2 {[%emt 0:01:01]} Rfc8 {[%emt 0:00:12]} 20. Qd2 {[%emt 0:00:37]} Qa3 {[%emt 0:04:15]} 21. Bf1 {[%emt 0:00:38]} Bb5 {[%emt 0:02:09]} 22. e5 {[%emt 0:03:13]} Nd5 {[%emt 0:00:42]} 23. Bxb5 {[%emt 0:00:29]} Rxb5 {[%emt 0:00:01]} 24. Re2 {[%emt 0:00:13]} Bf8 {[%emt 0:00:50]} 25. Bf2 {[%emt 0:00:42]} dxe5 {[%emt 0:01:11]} 26. dxe5 {[%emt 0:00:28]} Bb4 {[%emt 0:00:12]} 27. Qb2 {[%emt 0:01:01]} Qf3 {[%emt 0:03:23]} 28. Bxa7 {[%emt 0:00:27]} Bc5+ {[%emt 0:00:16]} 29. Bxc5 {[%emt 0:00:04]} Rxb2 {[%emt 0:00:02]} 30. Rxb2 {[%emt 0:00:04]} Rxc5 {[%emt 0:00:03]} 0-1

[Event "World Prestigious University 2019"]
[Site "Tianjin"]
[Date "2019.11.28"]
[Round "8.13"]
[White "Fernandez, Daniel Howard"]
[Black "Weichao, Chu"]
[Result "0-1"]
[WhiteElo "2444"]
[BlackElo "2423"]
[PlyCount "64"]
[EventDate "2019.11.26"]
[EventType "team-tourn"]
[EventCountry "CHN"]
[TimeControl "1500+10"]
[WhiteClock "0:04:11"]
[BlackClock "0:00:29"]

1. Nf3 {[%emt 0:00:00]} c5 {[%emt 0:00:04]} 2. g3 {[%emt 0:00:08]} Nc6 {[%emt 0:00:05]} 3. Bg2 {[%emt 0:00:02]} g6 {[%emt 0:00:03]} 4. O-O {[%emt 0:00:20]} Bg7 {[%emt 0:00:04]} 5. e4 {[%emt 0:01:00]} d6 {[%emt 0:00:46]} 6. c3 {[%emt 0:00:32]} e5 {[%emt 0:00:49]} 7. d3 {[%emt 0:00:29]} Nge7 {[%emt 0:00:24]} 8. Nbd2 {[%emt 0:00:27]} O-O {[%emt 0:00:11]} 9. Nc4 {[%emt 0:01:56]} b5 {[%emt 0:02:30]} 10. Ne3 {[%emt 0:00:13]} Rb8 {[%emt 0:00:05]} 11. Bd2 {[%emt 0:03:22]} a5 {[%emt 0:01:26]} 12. a4 {[%emt 0:00:17]} b4 {[%emt 0:01:59]} 13. Nh4 {[%emt 0:01:23]} Ba6 {[%emt 0:00:10]} 14. Qc2 {[%emt 0:01:02]} Rc8 {[%emt 0:02:53]} 15. f4 {[%emt 0:01:58]} exf4 {[%emt 0:00:02]} 16. gxf4 {[%emt 0:00:14]} d5 {[%emt 0:00:16]} 17. exd5 {[%emt 0:03:16]} Nxd5 {[%emt 0:00:22]} 18. Nxd5 {[%emt 0:01:42]} Qxh4 {[%emt 0:00:05]} 19. Rae1 {[%emt 0:01:01]} Rfe8 {[%emt 0:03:22]} 20. f5 {[%emt 0:01:06]} Be5 {[%emt 0:02:53]} 21. Bf4 {[%emt 0:01:07]} Bd4+ {[%emt 0:02:52]} 22. Be3 {[%emt 0:01:13]} Bxe3+ {[%emt 0:00:25]} 23. Nxe3 {[%emt 0:00:42]} Ne5 {[%emt 0:00:42]} 24. Be4 {[%emt 0:01:19]} Rcd8 {[%emt 0:00:05]} 25. fxg6 {[%emt 0:00:52]} hxg6 {[%emt 0:00:04]} 26. Nd5 {[%emt 0:00:38]} Bxd3 {[%emt 0:01:35]} 27. Bxd3 {[%emt 0:01:11]} Nf3+ {[%emt 0:01:24]} 28. Rxf3 {[%emt 0:00:25]} Rxe1+ {[%emt 0:00:10]} 29. Bf1 {[%emt 0:01:16]} Rxd5 {[%emt 0:00:10]} 30. Qb3 {[%emt 0:00:26]} Rg5+ {[%emt 0:00:08]} 31. Kh1 {[%emt 0:00:12]} Rxf1+ {[%emt 0:00:03]} 32. Rxf1 {[%emt 0:00:02]} Qe4+ {[%emt 0:00:02]} 0-1

[Event "World Prestigious University 2019"]
[Site "Tianjin"]
[Date "2019.11.28"]
[Round "8.14"]
[White "Wei, Siyu"]
[Black "Behar, Joshua"]
[Result "1-0"]
[WhiteElo "2106"]
[BlackElo "1974"]
[PlyCount "79"]
[EventDate "2019.11.26"]
[EventType "team-tourn"]
[EventCountry "CHN"]
[TimeControl "1500+10"]
[WhiteClock "0:02:11"]
[BlackClock "0:05:00"]

1. d4 {[%emt 0:00:00]} Nf6 {[%emt 0:00:00]} 2. Bg5 {[%emt 0:00:01]} e6 {[%emt 0:00:00]} 3. e4 {[%emt 0:00:22]} d5 {[%emt 0:00:53]} 4. e5 {[%emt 0:00:10]} h6 {[%emt 0:00:01]} 5. Bh4 {[%emt 0:00:55]} g5 {[%emt 0:00:06]} 6. Bg3 {[%emt 0:00:01]} Nfd7 {[%emt 0:00:10]} 7. h4 {[%emt 0:00:41]} c5 {[%emt 0:00:09]} 8. c3 {[%emt 0:00:08]} Nc6 {[%emt 0:00:03]} 9. hxg5 {[%emt 0:05:22]} Qxg5 {[%emt 0:00:10]} 10. Nf3 {[%emt 0:00:13]} Qd8 {[%emt 0:00:03]} 11. a3 {[%emt 0:00:56]} c4 {[%emt 0:01:34]} 12. Nbd2 {[%emt 0:00:08]} b5 {[%emt 0:01:03]} 13. Be2 {[%emt 0:00:04]} Bb7 {[%emt 0:00:11]} 14. Nh4 {[%emt 0:00:18]} Nb6 {[%emt 0:00:54]} 15. Bh5 {[%emt 0:00:06]} Qd7 {[%emt 0:01:13]} 16. Qf3 {[%emt 0:00:10]} Rh7 {[%emt 0:00:42]} 17. Nf1 {[%emt 0:04:01]} O-O-O {[%emt 0:00:52]} 18. Ne3 {[%emt 0:00:02]} Na4 {[%emt 0:00:47]} 19. Ng4 {[%emt 0:01:41]} Qc7 {[%emt 0:00:26]} 20. Nf6 {[%emt 0:00:17]} Rh8 {[%emt 0:00:05]} 21. Rb1 {[%emt 0:01:34]} a5 {[%emt 0:01:01]} 22. O-O {[%emt 0:00:05]} Kb8 {[%emt 0:01:12]} 23. Qe3 {[%emt 0:01:06]} Ka8 {[%emt 0:01:24]} 24. Nf3 {[%emt 0:01:12]} Ne7 {[%emt 0:00:36]} 25. Qd2 {[%emt 0:01:37]} Nf5 {[%emt 0:00:57]} 26. Bf4 {[%emt 0:00:01]} Nb6 {[%emt 0:02:01]} 27. Bg4 {[%emt 0:00:18]} Ne7 {[%emt 0:00:11]} 28. Qc2 {[%emt 0:00:40]} Ng8 {[%emt 0:00:51]} 29. Bg3 {[%emt 0:00:31]} Nxf6 {[%emt 0:00:45]} 30. exf6 {[%emt 0:00:02]} Bd6 {[%emt 0:00:01]} 31. Bxd6 {[%emt 0:00:23]} Qxd6 {[%emt 0:00:12]} 32. Ne5 {[%emt 0:00:02]} Rdf8 {[%emt 0:00:45]} 33. Bh5 {[%emt 0:00:23]} Qc7 {[%emt 0:00:38]} 34. b3 {[%emt 0:00:15]} cxb3 {[%emt 0:00:34]} 35. Rxb3 {[%emt 0:00:36]} Ba6 {[%emt 0:00:00]} 36. Rfb1 {[%emt 0:00:07]} Nd7 {[%emt 0:04:57]} 37. Nxd7 {[%emt 0:00:36]} Qxd7 {[%emt 0:00:04]} 38. Be2 {[%emt 0:00:08]} a4 {[%emt 0:01:57]} 39. Rxb5 {[%emt 0:01:08]} Ka7 {[%emt 0:01:51]} 40. Ra5 {[%emt 0:00:20]} 1-0